fUSD/lending_fUSD_20250421
["ID","MTS","AMOUNT","RATE_DAILY","PERIOD"]
[358569781,1745269245478,-904.81,0.00056438,120]
[358569782,1745269245520,-1533.11,0.00056438,120]
[358569783,1745269245564,-717.85971523,0.00056438,120]
[358569784,1745269245607,-729.7,0.00056438,120]
[358569785,1745269245647,-601.5,0.00056438,120]
[358569786,1745269245687,-779.65,0.00056438,120]
[358569787,1745269245731,-1738.73536065,0.00056438,120]
[358569788,1745269245771,-706.49362982,0.00056438,120]
[358569789,1745269245811,-612.26636105,0.00056438,120]
[358569790,1745269245850,-1772.797862,0.00056438,120]
[358569791,1745269245889,-502.0,0.00056438,120]
[358569792,1745269245929,-1438.94,0.00056438,120]
[358569793,1745269245968,-928.03,0.00056438,120]
[358569794,1745269246008,-1567.59326051,0.00056438,120]
[358569795,1745269246047,-765.15918195,0.00056438,120]
[358569796,1745269246085,-1636.3729344,0.00056438,120]
[358569797,1745269246126,-1871.97,0.00056438,120]
[358569798,1745269246166,-658.05040823,0.00056438,120]
[358569799,1745269246209,-1100.33306761,0.00056438,120]
[358569800,1745269246251,-1543.61366576,0.00056438,120]
[358569801,1745269246291,-2906.59429682,0.00056438,120]
[358569802,1745269246336,-621.89,0.00056438,120]
[358569803,1745269246381,-616.44,0.00056438,120]
[358569804,1745269246422,-830.09,0.00056438,120]
[358569805,1745269246465,-506.8868896,0.00056438,120]
[358569806,1745269246507,-1256.12630586,0.00056438,120]
[358569807,1745269246549,-1178.18627915,0.00056438,120]
[358569808,1745269246590,-1134.17,0.00056438,120]
[358569809,1745269246628,-585.8,0.00056438,120]
[358569810,1745269246668,-821.15127913,0.00056438,120]
[358569811,1745269246706,-822.97,0.00056438,120]
[358569812,1745269246746,-1335.68730455,0.00056438,120]
[358569813,1745269246783,-1048.75207215,0.00056438,120]
[358569814,1745269246821,-1275.11428967,0.00056438,120]
[358569815,1745269246859,-817.08,0.00056438,120]
[358569816,1745269246897,-1659.25916665,0.00056438,120]
[358569817,1745269246937,-457.03289679,0.00056438,120]
[358569818,1745269246977,-583.87758755,0.00056438,120]
[358569819,1745269247016,-1122.37480962,0.00056438,120]
[358569820,1745269247055,-1948.55390744,0.00056438,120]
[358569821,1745269247094,-656.12,0.00056438,120]
[358569822,1745269247133,-762.04473674,0.00056438,120]
[358569823,1745269247172,-736.68,0.00056438,120]
[358569824,1745269247212,-720.4,0.00056438,120]
[358569825,1745269247252,-941.09021685,0.00056438,120]
[358569826,1745269247294,-645.93,0.00056438,120]
[358569827,1745269247333,-1158.52967458,0.00056438,120]
[358569828,1745269247371,-973.31365099,0.00056438,120]
[358569829,1745269247413,-901.67631652,0.00056438,120]
[358569830,1745269247451,-997.80034368,0.00056438,120]
[358569831,1745269247489,-783.80582628,0.00056438,120]
[358569832,1745269247530,-3240.57816138,0.00056438,120]
[358569833,1745269247570,-1596.78,0.00056438,120]
[358569834,1745269247610,-919.5491002,0.00056438,120]
[358569835,1745269247650,-804.63553696,0.00056438,120]
[358569836,1745269247688,-877.89104219,0.00056438,120]
[358569837,1745269247726,-1290.00811533,0.00056438,120]
[358569838,1745269247763,-1393.84,0.00056438,120]
[358569839,1745269247800,-864.64,0.00056438,120]
[358569840,1745269247838,-1022.73,0.00056438,120]
[358569841,1745269247876,-1668.19242038,0.00056438,120]
[358569842,1745269247913,-859.79,0.00056438,120]
[358569843,1745269247951,-1952.91828671,0.00056438,120]
[358569844,1745269247989,-511.41,0.00056438,120]
[358569845,1745269248028,-662.88,0.00056438,120]
[358569846,1745269248072,-575.04043567,0.00056438,120]
[358569847,1745269248113,-1348.97957364,0.00056438,120]
[358569848,1745269248155,-561.63,0.00056438,120]
[358569849,1745269248195,-997.01144262,0.00056438,120]
[358569850,1745269248237,-1058.11,0.00056438,120]
[358569851,1745269248278,-2581.70305969,0.00056438,120]
[358569852,1745269248317,-1410.59,0.00056438,120]
[358569853,1745269248359,-508.8066563,0.00056438,120]
[358569854,1745269248399,-1495.05684133,0.00056438,120]
[358569855,1745269248615,-744.04,0.00056438,120]
[358569856,1745269248657,-955.88,0.00056438,120]
[358569857,1745269248699,-1300.2012214,0.00056438,120]
[358569858,1745269248742,-1053.91082848,0.00056438,120]
[358569859,1745269248784,-1074.260001,0.00056438,120]
[358569860,1745269248826,-1020.22,0.00056438,120]
[358569861,1745269248867,-675.03294153,0.00056438,120]
[358569862,1745269248908,-1637.73152432,0.00056438,120]
[358569863,1745269248950,-889.57561264,0.00056438,120]
[358569864,1745269248991,-1570.9,0.00056438,120]
[358569865,1745269249034,-2220.79265156,0.00056438,120]
[358569866,1745269249076,-2278.23528197,0.00056438,120]
[358569867,1745269249124,-1605.51588995,0.00056438,120]
[358569868,1745269249168,-1339.32,0.00056438,120]
[358569869,1745269249211,-1056.24,0.00056438,120]
[358569870,1745269249255,-2999.03851968,0.00056438,120]
[358569871,1745269249304,-831.53,0.00056438,120]
[358569872,1745269249347,-2289.65994404,0.00056438,120]
[358569873,1745269249391,-668.69049134,0.00056438,60]
[358569874,1745269249433,-1451.0,0.00056438,120]
[358569875,1745269249474,-1561.97695501,0.00056438,120]
[358569876,1745269249515,-891.65417323,0.00056438,120]
[358569877,1745269249556,-578.83,0.00056438,120]
[358569878,1745269249598,-2000.0,0.000565,90]
[358569879,1745269249639,-3000.00008336,0.0005666,35]
[358569880,1745269249681,-150.0,0.00056973,120]
[358569881,1745269249723,-50000.0,0.00057,57]
[358569882,1745269249764,-200.0,0.00057,108]
[358569883,1745269249803,-500.0,0.00057,120]
[358569884,1745269249842,-200.0,0.00057,108]
[358569885,1745269249879,-200.0,0.00057,108]
[358569886,1745269249918,-2843.14,0.00057,60]
[358569887,1745269249956,-209.59365833,0.0005753,120]
[358569888,1745269249993,-500.0,0.00057534,120]
[358569889,1745269250032,-14810.54101486,0.000576,120]
[358569890,1745269250070,-3000.0,0.0005768,40]
[358569891,1745269250109,-3290.11526603,0.00057888,120]
[358569892,1745269250151,-50000.0,0.00058,58]
[358569893,1745269250190,-1857.6592124,0.00058,120]
[358569894,1745269250229,-514.26214997,0.00058,120]
[358569895,1745269250270,-500.0,0.00058,120]
[358569896,1745269250310,-200.0,0.00058,112]
[358569897,1745269250352,-500.0,0.00058,120]
[358569898,1745269250395,-250.0,0.00058,120]
[358569899,1745269250434,-342.099999,0.00058,112]
[358569900,1745269250475,-342.1,0.00058,112]
[358569901,1745269250517,-6123.66022958,0.00058314,120]
[358569902,1745269250560,-151.0,0.00058329,120]
[358569903,1745269250602,-282.75292477,0.00058356,90]
[358569904,1745269250644,-3000.0,0.0005844,40]
[358569905,1745269250686,-209.59365833,0.00058795,120]
[358569906,1745269250729,-563426.5171189,0.000588,120]
[358569907,1745269250778,-1000.0,0.000589,120]
[358569908,1745269250823,-500.0,0.00058904,120]
[358569909,1745269250867,-150.0,0.00058915,120]
[358569910,1745269250913,-50000.0,0.00059,59]
[358569911,1745269250955,-300.0,0.00059,120]
[358569912,1745269250998,-200.0,0.00059,116]
[358569913,1745269251041,-2000.0,0.00059,120]
[358569914,1745269251083,-500.0,0.00059,120]
[358569915,1745269251127,-6796.36,0.00059,60]
[358569916,1745269251169,-476.24,0.00059049,120]
[358569917,1745269251218,-238.57,0.000592,60]
[358569918,1745269251268,-238.57,0.000592,60]
[358569919,1745269251320,-238.57,0.000592,60]
[358569920,1745269251369,-238.57,0.000592,60]
[358569921,1745269251424,-238.57,0.000592,60]
[358569922,1745269251474,-238.57,0.000592,60]
[358569923,1745269251526,-238.57,0.000592,60]
[358569924,1745269251577,-238.57,0.000592,60]
[358569925,1745269251632,-238.57,0.000592,60]
[358569926,1745269251682,-238.57,0.000592,60]
[358569927,1745269251734,-238.57,0.000592,60]
[358569928,1745269251784,-238.57,0.000592,60]
[358569929,1745269251833,-238.57,0.000592,60]
[358569930,1745269251882,-238.57,0.000592,60]
[358569931,1745269251930,-238.57,0.000592,60]
[358569932,1745269251977,-238.57,0.000592,60]
[358569933,1745269252025,-238.57,0.000592,60]
[358569934,1745269252076,-238.57,0.000592,60]
[358569935,1745269252128,-238.57,0.000592,60]
[358569936,1745269252182,-238.57,0.000592,60]
[358569937,1745269252234,-238.57,0.000592,60]
[358569938,1745269252285,-238.57,0.000592,60]
[358569939,1745269252335,-238.57,0.000592,60]
[358569940,1745269252386,-238.57,0.000592,60]
[358569941,1745269252429,-150.0,0.00059223,120]
[358569942,1745269252471,-2000.0,0.000593,90]
[358569943,1745269252516,-116141.8,0.000595,120]
[358569944,1745269252559,-169.0,0.00059807,120]
[358569945,1745269252602,-5000.0,0.0005986,45]
[358569946,1745269252644,-2501.20096397,0.0005987,120]
[358569947,1745269252686,-2074.51609697,0.00059893,120]
[358569948,1745269252726,-1000.0721,0.0005993,40]
[358569949,1745269252968,-5683.48986319,0.0005998,120]
[358569950,1745269253012,-433.0,0.00059986,120]
[358569951,1745269253070,-1000.0,0.00059998,120]
[358569952,1745269253118,-1000.0,0.00059998,120]
[358569953,1745269253164,-1000.0,0.00059999,120]
[358569954,1745269253211,-50000.0,0.0006,60]
[358569955,1745269253255,-500.0,0.0006,120]
[358569956,1745269253297,-500.0,0.0006,120]
[358569957,1745269253340,-5730.6965815,0.0006,120]
[358569958,1745269253384,-266.81,0.0006,120]
[358569959,1745269253426,-2394.0,0.0006,120]
[358569960,1745269253467,-20457.87057111,0.0006,120]
[358569961,1745269253509,-230.0,0.0006,99]
[358569962,1745269253553,-200.0,0.0006,120]
[358569963,1745269253598,-2138.0,0.0006,120]
[358569964,1745269253639,-9092.46982278,0.0006,120]
[358569965,1745269253679,-3479.38148991,0.0006,120]
[358569966,1745269253720,-270.85079722,0.0006,120]
[358569967,1745269253762,-300.0,0.0006,120]
[358569968,1745269253808,-8685.54698377,0.0006,100]
[358569969,1745269253851,-500.0,0.0006,120]
[358569970,1745269253891,-500.0,0.0006,120]
[358569971,1745269253932,-338.0,0.0006,60]
[358569972,1745269253973,-894.98003188,0.0006,120]
[358569973,1745269254016,-1000.0,0.0006,120]
[358569974,1745269254061,-7785.0,0.0006,120]
[358569975,1745269254105,-1000.0,0.0006,120]
[358569976,1745269254148,-70701.55122783,0.0006,120]
[358569977,1745269254191,-101884.46887332,0.0006,120]
[358569978,1745269254235,-209.59365833,0.00060059,120]
[358569979,1745269254278,-498.24907148,0.00060118,120]
[358569980,1745269254323,-1000.0,0.00060189,120]
[358569981,1745269254367,-150.0,0.00060222,120]
[358569982,1745269254416,-3000.0,0.00060273,120]
[358569983,1745269254461,-3000.0,0.00060273,120]
[358569984,1745269254504,-3134.70519385,0.00060273,120]
[358569985,1745269254548,-500.0,0.00060273,120]
[358569986,1745269254596,-151.0,0.00060274,120]
[358569987,1745269254640,-151.0,0.00060274,120]
[358569988,1745269254683,-151.0,0.00060274,120]
[358569989,1745269254728,-151.0,0.00060274,120]
[358569990,1745269254772,-151.0,0.00060274,120]
[358569991,1745269254815,-210.086014,0.00060274,120]
[358569992,1745269255251,672.75,0.00049315,120]
[358569993,1745269255311,672.75,0.00049863,120]
[358569994,1745269255376,672.75,0.0005041,120]
[358569995,1745269255438,1630.05,0.00049315,120]
[358569996,1745269255488,672.75,0.00050958,120]
[358569997,1745269255551,1630.05,0.00049863,120]
[358569998,1745269255610,672.75,0.00051506,120]
[358569999,1745269255659,1630.05,0.0005041,120]
[358570000,1745269255712,672.75,0.00052054,120]
[358570001,1745269255759,1630.05,0.00050958,120]
[358570002,1745269255820,672.75,0.00052602,120]
[358570003,1745269255881,1630.05,0.00051506,120]
[358570004,1745269255936,672.75,0.0005315,120]
[358570005,1745269255989,1630.05,0.00052054,120]
[358570006,1745269256047,672.75,0.00053698,120]
[358570007,1745269256100,1630.05,0.00052602,120]
[358570008,1745269256158,730.65,0.00049315,120]
[358570009,1745269256209,672.75,0.00054246,120]
[358570010,1745269256259,1630.05,0.0005315,120]
[358570011,1745269256308,730.65,0.00049863,120]
[358570012,1745269256356,672.75,0.00054794,120]
[358570013,1745269256408,1630.05,0.00053698,120]
[358570014,1745269256458,730.65,0.0005041,120]
[358570015,1745269256514,672.75,0.00055342,120]
[358570016,1745269256563,1630.05,0.00054246,120]
[358570017,1745269256620,730.65,0.00050958,120]
[358570018,1745269256689,1630.05,0.00054794,120]
[358570019,1745269256741,730.65,0.00051506,120]
[358570020,1745269257034,1630.05,0.00055342,120]
[358570021,1745269257082,672.75,0.0005589,120]
[358570022,1745269257131,730.65,0.00052054,120]
[358570023,1745269257182,1630.05,0.0005589,120]
[358570024,1745269257232,672.92402975,0.00056438,120]
[358570025,1745269257286,730.65,0.00052602,120]
[358570026,1745269257334,1630.16961219,0.00056438,120]
[358570027,1745269257384,150.0,0.00059974,120]
[358570028,1745269257432,730.65,0.0005315,120]
[358570029,1745269257479,730.65,0.00053698,120]
[358570030,1745269257576,730.65,0.00054246,120]
[358570031,1745269257624,730.65,0.00054794,120]
[358570032,1745269257693,730.65,0.00055342,120]
[358570033,1745269257757,730.65,0.0005589,120]
[358570034,1745269257804,730.7048211,0.00056438,120]
[358570035,1745269258048,500.0,0.00049315,120]
[358570036,1745269258097,500.0,0.00049863,120]
[358570037,1745269258146,208.23710827,0.0005041,120]
[358570038,1745269258662,500.0,0.00049315,120]
[358570039,1745269258777,500.0,0.00049863,120]
[358570040,1745269258889,500.0,0.0005041,120]
[358570041,1745269258951,500.0,0.00050958,120]
[358570042,1745269259037,500.0,0.00051506,120]
[358570043,1745269259157,500.0,0.00052054,120]
[358570044,1745269259212,500.0,0.00059974,120]
[358570045,1745269259263,500.0,0.00052602,120]
[358570046,1745269259371,500.0,0.0005315,120]
[358570047,1745269259429,500.0,0.00059974,120]
[358570048,1745269259538,500.0,0.00053698,120]
[358570049,1745269259596,500.0,0.00059974,120]
[358570050,1745269259656,232.0,0.00059974,120]
[358570051,1745269259701,500.0,0.00054246,120]
[358570052,1745269259769,500.0,0.00054794,120]
[358570053,1745269259841,500.0,0.00055342,120]
[358570054,1745269259902,500.0,0.0005589,120]
[358570055,1745269259959,167.79603878,0.00056438,120]
[358570056,1745269260004,500.0,0.00059974,120]
[358570057,1745269260128,500.0,0.00059974,120]
[358570058,1745269260238,500.0,0.00059974,120]
[358570059,1745269260289,500.0,0.00059974,120]
[358570060,1745269260401,500.0,0.00059974,120]
[358570061,1745269260462,500.0,0.00059974,120]
[358570062,1745269260558,500.0,0.00059974,120]
[358570063,1745269260887,500.0,0.00059974,120]
[358570064,1745269260967,500.0,0.00059974,120]
[358570065,1745269261032,500.0,0.00059974,120]
[358570066,1745269261098,500.0,0.00059974,120]
[358570067,1745269261208,500.0,0.00059974,120]
[358570068,1745269261305,500.0,0.00059974,120]
[358570069,1745269261414,500.0,0.00059974,120]
[358570070,1745269261477,500.0,0.00059974,120]
[358570071,1745269261537,500.0,0.00059974,120]
[358570072,1745269261592,500.0,0.00059974,120]
[358570073,1745269261663,585.01005391,0.00059974,120]
[358570074,1745269261845,500.0,0.00049315,120]
[358570075,1745269261901,150.0,0.00053697,120]
[358570076,1745269261951,150.0,0.00053697,120]
[358570077,1745269262068,200.0,0.00053697,120]
[358570078,1745269355094,400000.0,0.00047981,30]
[358570079,1745269662319,151.0,0.00047987,30]
[358570080,1745269662950,151.0,0.00047987,30]
[358570081,1745269663599,151.0,0.00047987,30]
[358570082,1745269664228,151.0,0.00047987,30]
[358570093,1745269832161,-225.97439302,0.00019899,2]
[358570094,1745269832172,-250.0,0.000199,2]
[358570095,1745269832182,-310.73740422,0.000199,2]
[358570096,1745269832192,-346.2097965,0.000199,2]
[358570097,1745269832201,-300.0,0.00019998,2]
[358570098,1745269832211,-500.0,0.00019999,2]
[358570099,1745269832220,-74.1906231,0.00019999,2]
[358570100,1745269832232,-425.8093769,0.00019999,2]
[358570101,1745269832242,-203.34763163,0.00019999,2]
[358570102,1745269832306,-296.65236837,0.00019999,2]
[358570103,1745269832315,-442.17461013,0.00019999,2]
[358570189,1745269838107,-57.82538987,0.00019999,2]
[358570190,1745269838117,-364.98204598,0.00019999,2]
[358570191,1745269838269,-1640.99323351,0.00019999,2]
[358570192,1745269838279,-300.0,0.00019999,2]
[358570193,1745269838288,-110334.58585394,0.0002,2]
[358570194,1745269838324,-1499130.91704533,0.0002,2]
[358570195,1745269838335,-2955771.08740354,0.0002,2]
[358570196,1745269838349,-476.43552863,0.0002,2]
[358570197,1745269838380,-55930.44539044,0.0002,2]
[358570198,1745269838436,-34712.52626796,0.0002,2]
[358570410,1745269842400,-8069.00853833,0.0002,2]
[358570428,1745269922772,296.68195334,0.00047992,30]
[358570429,1745270823816,151.0,0.00047946,30]
[358570430,1745270824428,151.0,0.00047946,30]
[358570431,1745270825059,151.0,0.00047946,30]
[358570432,1745270825684,151.0,0.00047946,30]
[358570433,1745270826347,151.0,0.00047946,30]
[358570434,1745270826965,151.0,0.00047946,30]
[358570435,1745270827575,151.0,0.00047946,30]
[358570436,1745270828305,151.0,0.00047946,30]
[358570437,1745270828945,151.0,0.00047946,30]
[358570438,1745270829993,151.0,0.00047946,30]
[358570439,1745270830419,151.0,0.00047946,30]
[358570440,1745270830959,151.0,0.00047946,30]
[358570441,1745270831569,151.0,0.00047946,30]
[358570442,1745270832207,151.0,0.00047946,30]
[358570443,1745270833353,151.0,0.00047946,30]
[358570444,1745270833989,151.0,0.00047946,30]
[358570445,1745270836114,1986.51827853,0.00047946,120]
[358570446,1745270836949,216.13713509,0.00047946,120]
[358570447,1745270843224,563.5,0.00047946,30]
[358570448,1745270843659,1696.10731476,0.00047946,30]
[358570449,1745270843831,243.0,0.00047946,30]
[358570450,1745270857856,506.0,0.00047946,120]
[358570451,1745270858310,543.47138523,0.00047946,120]
[358570452,1745270868463,923.47508236,0.00047946,120]
[358570453,1745270877070,546.21351788,0.00047946,120]
[358570454,1745270887518,220.22264701,0.00047946,120]
[358570455,1745270914334,205.35090107,0.00047946,30]
[358570456,1745270915645,1292.04838819,0.00047946,120]
[358570457,1745270917291,465.84423422,0.00047946,30]
[358570458,1745270917478,1406.48544456,0.00047946,30]
[358570459,1745270917531,191.03450403,0.00047946,120]
[358570460,1745270917652,2055.38201948,0.00047946,120]
[358570461,1745270917774,1244.35458672,0.00047946,120]
[358570463,1745270927252,2500.000001,0.000151,2]
[358570465,1745270929659,159.06729856,0.00028,60]
[358570543,1745271038348,-600.0,0.00019899,2]
[358570544,1745271038358,-1919.08544243,0.000199,2]
[358570545,1745271038370,-15130.31755757,0.000199,2]
[358570546,1745271038380,-644.0005,0.000199,2]
[358570547,1745271038389,-25790.48363671,0.000199,2]
[358570548,1745271038408,-13474.70057409,0.000199,2]
[358570549,1745271038418,-316.2942,0.000199,2]
[358570550,1745271038428,-3917.8814,0.000199,2]
[358570551,1745271038438,-156.49827212,0.000199,2]
[358570552,1745271038448,-172.27740105,0.000199,2]
[358570553,1745271038459,-500.0,0.00019999,2]
[358570554,1745271038468,-500.0,0.00019999,2]
[358570555,1745271038477,-300.0,0.00019999,2]
[358570556,1745271038487,-500.0,0.00019999,2]
[358570557,1745271038496,-231.4518421,0.00019999,2]
[358570558,1745271038506,-500.0,0.00019999,2]
[358570559,1745271038516,-500.0,0.00019999,2]
[358570560,1745271038528,-21876.37201981,0.00019999,2]
[358570561,1745271038537,-1456185.44133616,0.0002,2]
[358570562,1745271038550,-16920.4781002,0.0002,2]
[358570563,1745271038561,-330.1952517,0.0002,2]
[358570564,1745271038570,-2938520.41405164,0.0002,2]
[358570565,1745271038582,-24531.55106111,0.0002,2]
[358570566,1745271038610,-1103.78704119,0.0002,2]
[358570567,1745271038621,-779.54,0.0002,2]
[358570568,1745271038693,-403.3,0.0002,2]
[358570571,1745271038704,-419.05689739,0.0002,2]
[358570594,1745271040774,-393.90392858,0.0002,2]
[358570606,1745271046553,-2926.66595405,0.0002,2]
[358570607,1745271046672,-956.07,0.0002,2]
[358570611,1745271395903,4798.36820771,0.000198,2]
[358570612,1745271395926,300.0,0.000198,2]
[358570613,1745271395947,1160.70982543,0.000198,2]
[358570614,1745271395968,250.0,0.000198,2]
[358570615,1745271421221,250.0,0.00019799,2]
[358570617,1745271748870,150.0,0.00019631,2]
[358570618,1745271782600,390.99,0.00019597,2]
[358570619,1745271832275,200.0,0.00019439,2]
[358570620,1745271832841,88.011331,0.0001944,2]
[358570621,1745271945315,-269.51691043,0.0001937,2]
[358570622,1745272172550,-169.18499823,0.00019024,2]
[358570623,1745272202956,2000.0,0.0002,4]
[358570624,1745272203937,-30.81500177,0.00019024,2]
[358570625,1745272203962,-122.41339076,0.00019197,2]
[358570626,1745272231442,-127.58660924,0.00019197,2]
[358570627,1745272231452,-1015.38308957,0.0001937,2]
[358570628,1745272231461,-104.14822247,0.0001944,2]
[358570629,1745272231472,-7.84044653,0.0001944,2]
[358570630,1745272231481,-200.0,0.0001944,2]
[358570631,1745272231491,-300.0,0.00019617,2]
[358570632,1745272231500,-82.15956347,0.00019618,2]
[358570633,1745272231511,-4018.92116591,0.00019618,2]
[358570634,1745272231526,-1351.34433458,0.00019618,2]
[358570635,1745272231538,-959.69674344,0.00019618,2]
[358570636,1745272231619,-1519.81907589,0.00019618,2]
[358570698,1745272237683,-18635.08911671,0.00019618,2]
[358570699,1745272237693,-1637.87,0.00019669,2]
[358570700,1745272237703,-316.2942,0.000197,2]
[358570701,1745272237712,-450.98,0.00019707,2]
[358570702,1745272237722,-200.0,0.00019717,2]
[358570703,1745272237731,-189.25,0.00019776,2]
[358570704,1745272237740,-1000.0,0.00019779,2]
[358570705,1745272237750,-150.0,0.00019781,2]
[358570706,1745272237759,-600.0,0.00019799,2]
[358570707,1745272237769,-12860.85276686,0.000198,2]
[358570708,1745272237778,-2082.4709,0.000198,2]
[358570709,1745272237787,-2207.2317,0.000198,2]
[358570710,1745272237797,-27007.5707,0.000198,2]
[358570711,1745272237806,-2259.2377,0.000198,2]
[358570712,1745272237815,-767.157,0.000198,2]
[358570713,1745272237825,-534.5893,0.000198,2]
[358570714,1745272237834,-3917.8814,0.000198,2]
[358570715,1745272237843,-34031.0389,0.000198,2]
[358570716,1745272237853,-896.7283,0.000198,2]
[358570717,1745272237862,-867.8621,0.000198,2]
[358570718,1745272237872,-170.22702338,0.000198,2]
[358570719,1745272237881,-2481.42502733,0.000198,2]
[358570720,1745272237891,-2481.42502731,0.00019811,2]
[358570721,1745272237900,-2481.42502731,0.00019822,2]
[358570722,1745272237909,-2481.42502731,0.00019833,2]
[358570723,1745272237918,-2481.42502731,0.00019844,2]
[358570724,1745272237929,-2481.42502731,0.00019856,2]
[358570725,1745272237939,-2481.42502731,0.00019867,2]
[358570726,1745272237948,-165.63823045,0.00019873,2]
[358570727,1745272237957,-503.82999379,0.00019873,2]
[358570728,1745272237967,-2481.42502731,0.00019878,2]
[358570729,1745272237976,-2481.42502731,0.00019889,2]
[358570730,1745272237986,-10399.03254894,0.00019899,2]
[358570731,1745272237995,-500.0,0.00019899,2]
[358570732,1745272238007,-248.93609849,0.00019899,2]
[358570733,1745272238016,-10399.03254888,0.00019899,2]
[358570734,1745272238025,-10399.03254888,0.00019899,2]
[358570735,1745272238034,-10399.03254888,0.00019899,2]
[358570736,1745272238044,-10399.03254888,0.00019899,2]
[358570737,1745272238053,-10399.03254888,0.000199,2]
[358570738,1745272238062,-10399.03254888,0.000199,2]
[358570739,1745272238072,-10399.03254888,0.000199,2]
[358570740,1745272238081,-10399.03254888,0.000199,2]
[358570741,1745272238090,-296.75125416,0.000199,2]
[358570742,1745272238100,-11026.1296,0.000199,2]
[358570743,1745272238109,-934.1242,0.000199,2]
[358570744,1745272238118,-1437.6633,0.000199,2]
[358570745,1745272238127,-1405.5238,0.000199,2]
[358570746,1745272238136,-88836.011,0.000199,2]
[358570747,1745272238145,-157.2867,0.000199,2]
[358570748,1745272238155,-4423.3065,0.000199,2]
[358570749,1745272238163,-164.70128771,0.000199,2]
[358570750,1745272238172,-170.22702337,0.000199,2]
[358570751,1745272238181,-236.12981965,0.000199,2]
[358570752,1745272238190,-5586.15090314,0.000199,2]
[358570753,1745272238199,-3286.74302138,0.000199,2]
[358570754,1745272238208,-2481.42502731,0.000199,2]
[358570755,1745272238217,-10399.03254888,0.000199,2]
[358570756,1745272238227,-185.57252561,0.000199,2]
[358570757,1745272238235,-1448.63322892,0.000199,2]
[358570758,1745272238245,-2583.0,0.00019973,2]
[358570759,1745272238254,-500.0,0.00019973,2]
[358570760,1745272238263,-628.10016536,0.00019973,2]
[358570761,1745272238273,-500.0,0.00019973,2]
[358570762,1745272238282,-500.0,0.00019973,2]
[358570763,1745272238291,-311.73011261,0.00019973,2]
[358570764,1745272238299,-500.0,0.00019973,2]
[358570765,1745272238308,-74867.1028783,0.00019986,2]
[358570766,1745272238317,-2310.8496276,0.00019986,2]
[358570767,1745272238326,-27341.9210815,0.00019986,2]
[358570768,1745272238335,-10794.1597638,0.00019986,2]
[358570769,1745272238344,-2135.911798,0.00019986,2]
[358570770,1745272238352,-4725.0585527,0.00019986,2]
[358570771,1745272238362,-1163.3737103,0.00019986,2]
[358570772,1745272238371,-500.0,0.00019999,2]
[358570773,1745272238380,-500.0,0.00019999,2]
[358570774,1745272238388,-500.0,0.00019999,2]
[358570775,1745272238398,-500.0,0.00019999,2]
[358570776,1745272238407,-500.0,0.00019999,2]
[358570777,1745272238416,-418.99226933,0.00019999,2]
[358570778,1745272238425,-300.0,0.00019999,2]
[358570779,1745272238434,-719.0,0.0002,2]
[358570780,1745272238443,-1313921.36362866,0.0002,2]
[358570781,1745272238455,-2955771.08740354,0.0002,2]
[358570782,1745272238477,-197292.49798605,0.0002,2]